bitfinex/quotes_SOLUSD_20240616
["timestamp","ask_amount","ask_price","bid_price","bid_amount"]
[1718533058845,25.6023,144.52,144.49,2.5607]
[1718533059045,7.6809,144.52,144.49,7.6821]
[1718533059652,7.6809,144.52,144.49,15.3642]
[1718533059859,2.5603,144.52,144.49,15.3642]
[1718533060459,2.5603,144.52,144.5,2.5605]
[1718533061326,25.6011,144.53,144.5,2.5605]
[1718533061528,2.5602,144.52,144.5,2.5605]
[1718533062249,25.6011,144.53,144.5,2.5605]
[1718533062443,7.6803,144.53,144.5,7.6815]
[1718533062943,15.3603,144.53,144.5,7.6815]
[1718533063951,15.3603,144.53,144.5,2.5605]
[1718533064455,7.6803,144.53,144.5,15.3631]
[1718533064648,2.5601,144.53,144.5,15.3631]
[1718533065629,2.5601,144.53,144.51,2.5603]
[1718533066135,2.5601,144.53,144.5,25.6051]
[1718533066754,2.5601,144.53,144.51,2.5603]
[1718533066958,2.5601,144.53,144.5,25.605]
[1718533067162,39.2711,144.54,144.45,6.5053]
[1718533067163,18.7916,144.54,144.52,2.5601]
[1718533067333,18.7916,144.54,144.51,23.043]
[1718533067654,18.7915,144.54,144.51,25.6032]
[1718533067951,18.7915,144.54,144.52,2.5601]
[1718533068143,18.7915,144.54,144.51,25.6032]
[1718533069851,23.9112,144.54,144.51,7.6808]
[1718533070057,7.6795,144.54,144.51,15.3619]
[1718533070952,2.5598,144.54,144.51,25.6033]
[1718533071760,7.6795,144.54,144.51,15.3619]
[1718533071962,7.6795,144.54,144.51,7.6808]
[1718533072337,2.56,144.53,144.5,25.6043]
[1718533073742,2.56,144.53,144.51,2.5603]
[1718533074142,15.6453,144.57,144.48,23.0472]
[1718533074461,2.5603,144.51,144.49,2.5606]
[1718533074774,2.5603,144.51,144.48,25.6079]
[1718533075164,25.6024,144.52,144.49,2.5607]
[1718533075342,2.5603,144.51,144.49,2.5607]
[1718533075542,25.6024,144.52,144.49,2.5607]
[1718533076183,7.6808,144.52,144.49,7.6821]
[1718533076985,15.3614,144.52,144.49,2.5607]
[1718533077374,7.6808,144.52,144.49,7.6821]
[1718533078051,2.5603,144.51,144.49,2.5607]
[1718533078258,25.6022,144.52,144.49,2.5607]
[1718533079253,7.6808,144.52,144.49,7.6821]
[1718533079678,7.6808,144.52,144.49,15.3642]
[1718533080380,0.68,144.56,144.45,6.5053]
[1718533080570,0.68,144.56,144.47,15.3658]
[1718533080571,17.9231,144.51,144.47,15.3658]
[1718533080772,2.5606,144.5,144.47,25.6098]
[1718533080977,2.5606,144.5,144.48,2.5608]
[1718533081483,7.6814,144.51,144.48,7.6825]
[1718533081659,15.3625,144.51,144.48,7.6825]
[1718533081863,15.3625,144.51,144.48,2.5608]
[1718533082277,25.6041,144.51,144.48,2.5608]
[1718533082473,7.6814,144.51,144.48,7.6825]
[1718533082656,15.3625,144.51,144.48,2.5608]
[1718533082857,15.3625,144.51,144.48,7.6826]
[1718533083362,15.3625,144.51,144.48,2.5608]
[1718533083772,2.5605,144.5,144.47,25.6099]
[1718533084672,23.0451,144.5,144.46,23.0504]
[1718533084883,2.5607,144.49,144.47,2.561]
[1718533085675,25.6058,144.5,144.47,2.561]
[1718533085963,7.6822,144.49,144.46,2.5611]
[1718533086163,15.3644,144.49,144.46,2.5611]
[1718533086377,2.5609,144.48,144.46,2.5611]
[1718533086782,12.8037,144.49,144.46,2.5611]
[1718533086783,25.6074,144.49,144.46,2.5611]
[1718533087792,2.5608,144.49,144.46,15.3671]
[1718533089988,2.5606,144.5,144.47,25.6101]
[1718533090192,25.6046,144.51,144.48,2.5608]
[1718533090393,2.5605,144.5,144.48,2.5608]
[1718533090587,23.0441,144.51,144.48,2.5608]
[1718533090797,2.5605,144.5,144.47,25.6101]
[1718533091295,2.5605,144.5,144.47,23.0492]
[1718533091595,7.6816,144.5,144.47,7.683]
[1718533091961,15.3632,144.5,144.47,2.5609]
[1718533092699,2.5607,144.49,144.46,25.6113]
[1718533093773,2.5609,144.48,144.45,25.6131]
[1718533094390,25.6074,144.49,144.46,2.5612]
[1718533094844,7.6822,144.49,144.46,7.6836]
[1718533097373,15.3644,144.49,144.46,7.6836]
[1718533097573,7.6823,144.49,144.46,7.6836]
[1718533098807,15.3645,144.49,144.46,2.5612]
[1718533099019,5.1222,144.47,144.43,17.9316]
[1718533099192,7.6835,144.47,144.44,2.5615]
[1718533099374,7.6829,144.48,144.45,7.6841]
[1718533099570,15.3656,144.48,144.45,7.6841]
[1718533099773,7.6829,144.48,144.45,7.6841]
[1718533100517,2.561,144.48,144.45,15.3683]
[1718533101018,2.561,144.48,144.46,2.5612]
[1718533102601,25.604,144.51,144.48,2.5608]
[1718533102805,7.6812,144.51,144.48,7.6825]
[1718533103181,15.3623,144.51,144.48,7.6825]
[1718533103380,12.8002,144.53,144.49,5.1212]
[1718533103591,5.1201,144.53,144.49,17.9247]
[1718533103800,5.1201,144.53,144.49,7.6817]
[1718533103801,7.6806,144.52,144.49,7.6817]
[1718533104411,15.3612,144.52,144.49,7.6817]
[1718533104576,7.6806,144.52,144.49,7.6817]
[1718533104772,25.6008,144.53,144.5,7.6816]
[1718533105212,2.5601,144.53,144.51,2.5603]
[1718533105711,15.3593,144.54,144.51,2.5603]
[1718533106086,25.5986,144.54,144.51,2.5603]
[1718533106490,15.3593,144.54,144.51,7.681]
[1718533106913,2.56,144.53,144.51,2.5603]
[1718533107326,16.3473,144.57,144.46,15.0184]
[1718533107516,10.2398,144.54,144.5,2.5605]
[1718533107818,15.3603,144.53,144.5,7.6815]
[1718533107985,7.6802,144.53,144.5,7.6815]
[1718533108598,7.6802,144.53,144.5,15.363]
[1718533109196,2.5601,144.53,144.51,2.5603]
[1718533109389,7.6801,144.53,144.5,25.605]
[1718533109590,2.5601,144.53,144.51,2.5603]
[1718533110723,2.5601,144.53,144.5,23.0447]
[1718533110908,2.5601,144.53,144.51,2.5603]
[1718533112831,25.5994,144.54,144.51,7.681]
[1718533113526,2.56,144.53,144.51,7.681]
[1718533113838,23.0395,144.54,144.51,2.5603]
[1718533114003,2.56,144.53,144.51,2.5603]
[1718533114433,25.5994,144.54,144.51,2.5603]
[1718533114734,25.5994,144.54,144.51,7.681]
[1718533116930,7.6798,144.54,144.51,15.3621]
[1718533118546,7.6802,144.53,144.5,5.121]
[1718533118840,2.5601,144.53,144.51,2.5603]
[1718533119012,25.5996,144.54,144.51,2.5603]
[1718533119539,25.5996,144.54,144.51,7.681]
[1718533121663,7.6799,144.54,144.52,2.5601]
[1718533121829,2.56,144.54,144.52,2.5601]
[1718533122530,7.6796,144.54,144.52,2.5601]
[1718533122729,7.6796,144.54,144.51,25.6034]
[1718533123347,7.6796,144.54,144.52,2.5601]
[1718533123557,7.6796,144.54,144.51,25.6034]
[1718533123758,7.6796,144.54,144.52,2.5601]
[1718533123941,7.6796,144.54,144.51,25.6034]
[1718533128363,7.6796,144.54,144.52,2.5601]
[1718533128670,7.6796,144.54,144.51,25.6034]
[1718533129274,7.6796,144.54,144.52,2.5601]
[1718533129572,7.6796,144.54,144.51,25.6034]
[1718533130285,7.6796,144.54,144.52,2.5601]
[1718533130583,7.6796,144.54,144.51,25.6034]
[1718533131273,15.3591,144.54,144.51,25.6034]
[1718533134072,2.56,144.53,144.51,7.6809]
[1718533134680,25.5984,144.54,144.51,7.6809]
[1718533135381,25.5984,144.54,144.51,15.362]
[1718533138364,7.6795,144.54,144.52,2.5601]
[1718533140786,2.5599,144.54,144.52,2.5601]
[1718533150099,2.5597,144.55,144.52,12.8007]
[1718533150300,18.9066,144.57,144.47,20.0]
[1718533150472,18.9066,144.57,144.54,2.5596]
[1718533150473,2.5594,144.56,144.54,2.5596]
[1718533150669,12.7994,144.54,144.51,2.5602]
[1718533150990,2.5596,144.55,144.53,7.6798]
[1718533151207,7.6785,144.56,144.54,2.5598]
[1718533151412,7.6785,144.56,144.53,23.0398]
[1718533151617,7.6785,144.56,144.53,25.5996]
[1718533152196,2.5595,144.56,144.53,25.5996]
[1718533152418,2.5595,144.56,144.54,2.5598]
[1718533152626,41.9414,144.57,144.54,15.3588]
[1718533153102,18.9067,144.57,144.55,2.5596]
[1718533153303,2.5594,144.56,144.54,7.6793]
[1718533153511,7.6765,144.6,144.55,20.0]
[1718533153729,25.5863,144.61,144.58,7.6771]
[1718533153896,25.5863,144.61,144.59,2.5588]
[1718533153897,2.5587,144.61,144.59,2.5588]
[1718533154420,7.6759,144.61,144.59,2.5589]
[1718533154638,2.5587,144.61,144.59,2.5589]
[1718533154964,15.3517,144.61,144.58,7.677]
[1718533155135,15.3517,144.61,144.58,15.3543]
[1718533155294,7.6759,144.61,144.58,15.3543]
[1718533155490,2.5587,144.61,144.59,2.5589]
[1718533158315,2.5587,144.61,144.58,23.0319]
[1718533158514,2.5587,144.61,144.59,2.5589]
[1718533162823,25.5852,144.62,144.59,7.6767]
[1718533163434,15.3511,144.62,144.59,7.6767]
[1718533163639,25.5851,144.62,144.59,7.6767]
[1718533166140,25.5851,144.62,144.59,15.3535]
[1718533169964,15.3511,144.62,144.59,15.3535]
[1718533171457,2.5585,144.62,144.6,2.5587]
[1718533172614,25.5833,144.63,144.6,7.6761]
[1718533173020,2.5584,144.62,144.6,7.6761]
[1718533173641,2.5584,144.62,144.6,2.5587]
[1718533178635,7.6752,144.62,144.6,2.5587]
[1718533178952,7.6752,144.62,144.59,25.589]
[1718533179552,7.6752,144.62,144.6,2.5587]
[1718533180328,7.6752,144.62,144.59,25.589]
[1718533182963,7.6752,144.62,144.6,2.5587]
[1718533183636,7.6752,144.62,144.59,23.0302]
[1718533183836,7.6752,144.62,144.6,2.5587]
[1718533184725,7.6752,144.62,144.59,25.589]
[1718533185128,2.5584,144.62,144.6,2.5587]
[1718533185633,7.6752,144.62,144.59,25.589]
[1718533186045,7.6752,144.62,144.59,23.0302]
[1718533186248,7.6752,144.62,144.59,25.589]
[1718533187542,7.6752,144.62,144.6,2.5587]
[1718533187743,7.6752,144.62,144.59,23.0302]
[1718533187943,7.6752,144.62,144.6,2.5587]
[1718533188559,7.6752,144.62,144.59,23.0302]
[1718533188751,7.6752,144.62,144.6,2.5587]
[1718533189959,15.61,144.64,144.55,20.0]
[1718533190130,25.5864,144.61,144.58,7.6772]
[1718533190337,2.5588,144.6,144.58,2.559]
[1718533190754,23.0277,144.61,144.58,7.6772]
[1718533190956,2.5587,144.61,144.59,2.5589]
[1718533191155,25.5849,144.62,144.59,15.3535]
[1718533191364,7.6755,144.62,144.59,15.3535]
[1718533191869,17.9084,144.63,144.53,20.0]
[1718533191870,2.5582,144.63,144.61,2.5585]
[1718533192736,7.6747,144.63,144.6,23.0281]
[1718533193029,7.6747,144.63,144.6,25.5867]
[1718533193635,15.3494,144.63,144.6,25.5867]
[1718533194544,15.3495,144.63,144.6,7.6759]
[1718533194972,2.5584,144.62,144.6,7.6759]
[1718533195379,25.5827,144.63,144.6,7.6759]
[1718533195538,2.5584,144.62,144.6,7.6759]
[1718533195741,2.5584,144.62,144.6,2.5586]
[1718533197068,7.6752,144.62,144.6,2.5586]
[1718533198249,2.5584,144.62,144.6,2.5586]
[1718533200568,2.5588,144.6,144.58,7.6772]
[1718533200783,2.5588,144.6,144.58,2.559]
[1718533200957,15.3527,144.6,144.57,25.5919]
[1718533201158,0.17,144.63,144.51,15.0977]
[1718533201379,7.6771,144.59,144.56,15.3567]
[1718533201682,7.6771,144.59,144.56,15.3566]
[1718533201866,7.6773,144.58,144.55,23.0362]
[1718533202074,2.5593,144.57,144.55,2.5595]
[1718533202244,23.0322,144.58,144.55,2.5595]
[1718533202446,25.5914,144.58,144.55,7.6787]
[1718533202648,2.5592,144.58,144.56,2.5594]
[1718533202985,7.6774,144.58,144.56,2.5594]
[1718533203344,7.6774,144.58,144.55,23.0362]
[1718533203540,2.5592,144.58,144.56,2.5594]
[1718533203753,7.6774,144.58,144.55,25.5957]
[1718533203953,15.3548,144.58,144.55,7.6787]
[1718533204149,2.5593,144.57,144.55,2.5595]
[1718533204384,23.0321,144.58,144.54,23.0376]
[1718533204385,2.5595,144.56,144.54,2.5598]
[1718533204557,15.6134,144.6,144.54,2.5598]
[1718533204558,12.7968,144.57,144.54,2.5598]
[1718533204770,0.17,144.59,144.52,2.5601]
[1718533204962,0.17,144.59,144.53,2.5599]
[1718533204963,2.5597,144.55,144.53,2.5599]
[1718533205871,23.0355,144.56,144.53,7.6799]
[1718533205872,25.5951,144.56,144.53,7.6799]
[1718533206276,23.0355,144.56,144.53,2.5599]
[1718533206587,25.5951,144.56,144.53,7.6799]
[1718533207954,7.6787,144.56,144.53,15.3599]
[1718533208492,5.1183,144.58,144.54,7.6791]
[1718533208782,2.5593,144.57,144.55,2.5595]
[1718533209084,2.5595,144.56,144.54,2.5597]
[1718533209253,2.5595,144.56,144.54,2.5598]
[1718533209654,7.6784,144.56,144.54,2.5598]
[1718533210091,7.6784,144.56,144.53,25.599]
[1718533210381,7.6784,144.56,144.54,2.5598]
[1718533210887,7.6784,144.56,144.47,37.2369]
[1718533210888,0.34,144.59,144.47,16.4469]
[1718533211056,0.34,144.59,144.51,15.3618]
[1718533211057,7.6796,144.54,144.51,15.3618]
[1718533212076,2.5599,144.54,144.52,2.5601]
[1718533213093,2.5599,144.54,144.52,7.6804]
[1718533213094,2.5598,144.54,144.52,7.6804]
[1718533213460,2.5598,144.54,144.52,2.5601]
[1718533214060,25.5977,144.55,144.52,2.5601]
[1718533214292,25.5977,144.55,144.52,7.6804]
[1718533215958,7.6793,144.55,144.53,2.56]
[1718533216386,7.6793,144.55,144.52,25.6015]
[1718533217298,0.17,144.55,144.44,29.28426899]
[1718533217589,0.17,144.55,144.49,12.8034]
[1718533217590,7.6806,144.52,144.49,12.8034]
[1718533217887,2.5602,144.52,144.5,2.5605]
[1718533219204,2.5602,144.52,144.49,25.6068]
[1718533219388,7.6806,144.52,144.49,25.6068]
[1718533220078,7.6806,144.52,144.49,7.6819]
[1718533220289,2.5602,144.52,144.5,2.5605]
[1718533221591,2.5602,144.52,144.49,25.6067]
[1718533222187,7.6806,144.52,144.49,25.6067]
[1718533222588,7.6806,144.52,144.49,7.6818]
[1718533223090,2.5607,144.49,144.47,2.5609]
[1718533223291,2.5607,144.49,144.46,25.6113]
[1718533223471,2.5607,144.49,144.47,2.561]
[1718533224088,2.5607,144.49,144.46,25.6113]
[1718533224288,23.0451,144.5,144.47,2.561]
[1718533224486,2.5607,144.49,144.47,2.561]
[1718533225473,25.6058,144.5,144.47,2.561]
[1718533227182,7.6819,144.5,144.47,7.6831]
[1718533230887,23.0469,144.49,144.45,23.0524]
[1718533231106,2.5609,144.48,144.46,2.5611]
[1718533231415,2.5609,144.48,144.46,2.5612]
[1718533232593,25.6077,144.49,144.46,2.5612]
[1718533233002,15.3647,144.49,144.46,7.6837]
[1718533233597,0.34,144.48,144.46,2.5612]
[1718533233906,2.9009,144.48,144.45,25.6136]
[1718533234102,8.0227,144.48,144.45,25.6136]
[1718533234311,0.34,144.48,144.46,2.5612]
[1718533235030,2.9009,144.48,144.46,2.5612]
[1718533235221,2.9009,144.48,144.45,25.6136]
[1718533235910,2.9009,144.48,144.45,25.6137]
[1718533236422,2.5611,144.47,144.44,7.6844]
[1718533236607,2.5611,144.47,144.45,2.5614]
[1718533237103,25.9494,144.48,144.45,2.5614]
[1718533237306,2.5611,144.47,144.45,2.5614]
[1718533237503,23.3884,144.48,144.45,2.5614]
[1718533237504,25.9494,144.48,144.45,2.5614]
[1718533238521,2.5611,144.47,144.45,2.5614]
[1718533239099,2.5611,144.47,144.44,25.6155]
[1718533240418,2.7308,144.49,144.46,15.3672]
[1718533240722,2.7308,144.49,144.41,6.6489]
[1718533240723,2.5606,144.5,144.41,6.6489]
[1718533240921,2.5606,144.5,144.47,2.561]
[1718533241101,2.5606,144.5,144.47,15.3662]
[1718533241301,7.6817,144.5,144.47,7.683]
[1718533241699,15.3633,144.5,144.47,2.561]
[1718533242118,2.5607,144.49,144.46,25.6112]
[1718533242530,7.6822,144.49,144.46,7.6833]
[1718533242729,7.6822,144.49,144.45,23.0522]
[1718533242730,2.5609,144.48,144.45,23.0522]
[1718533242904,2.5611,144.47,144.44,23.0539]
[1718533243105,7.6828,144.48,144.45,7.6841]
[1718533243506,15.3655,144.48,144.45,7.6841]
[1718533243702,7.6828,144.48,144.45,7.6841]
[1718533243925,7.6828,144.48,144.44,17.9308]
[1718533243926,7.6832,144.47,144.44,7.6844]
[1718533244129,2.5611,144.47,144.44,15.3693]
[1718533244307,2.5611,144.47,144.44,25.6156]
[1718533244507,7.6832,144.47,144.44,7.6845]
[1718533247719,7.6832,144.47,144.44,15.3693]
[1718533248044,2.5611,144.47,144.44,15.3693]
[1718533248537,7.6832,144.47,144.44,7.6845]
[1718533248913,2.5611,144.47,144.44,15.3693]
[1718533249437,15.3665,144.47,144.44,2.5614]
[1718533250246,2.5612,144.46,144.44,2.5614]
[1718533251148,25.611,144.47,144.44,2.5614]
[1718533253351,2.5612,144.46,144.44,2.5614]
[1718533253661,2.5612,144.46,144.44,2.5615]
[1718533253819,2.5611,144.47,144.45,2.5614]
[1718533254220,15.1796,144.52,144.47,2.561]
[1718533254415,23.044,144.51,144.48,2.5608]
[1718533254640,2.5606,144.5,144.47,15.3658]
[1718533254920,7.6817,144.5,144.47,15.366]
[1718533255260,7.6817,144.5,144.47,7.6828]
[1718533255428,7.6817,144.5,144.47,15.366]
[1718533255944,7.6817,144.5,144.46,10.2446]
[1718533255945,2.5607,144.49,144.46,23.0504]
[1718533256118,2.5607,144.49,144.46,25.6115]
[1718533256315,2.5607,144.49,144.47,2.561]
[1718533256540,25.6057,144.5,144.47,7.6831]
[1718533256771,17.924,144.5,144.47,7.6831]
[1718533257060,7.6817,144.5,144.47,15.3663]
[1718533258062,2.5606,144.5,144.47,15.3663]
[1718533258426,7.6808,144.52,144.49,2.5606]
[1718533258621,2.5602,144.52,144.49,7.6819]
[1718533258843,2.5602,144.52,144.5,2.5605]
[1718533259021,2.5602,144.52,144.49,25.6065]
[1718533259222,2.5602,144.52,144.5,2.5605]
[1718533259457,7.6805,144.52,144.49,7.6818]
[1718533260425,5.12,144.53,144.44,0.17]
[1718533260631,2.5604,144.51,144.49,2.5606]
[1718533261028,2.5604,144.51,144.44,20.34]
[1718533261029,2.5604,144.51,144.48,25.6083]
[1718533261535,7.6811,144.51,144.48,7.6823]
[1718533261734,15.3622,144.51,144.48,7.6823]
[1718533261938,2.5608,144.49,144.46,5.1224]
[1718533262141,2.5608,144.49,144.47,2.561]
[1718533262855,25.6063,144.5,144.47,2.561]
[1718533263037,2.5607,144.49,144.47,2.561]
[1718533263436,25.6062,144.5,144.47,2.561]
[1718533263751,15.3643,144.49,144.46,7.6835]
[1718533264170,7.6821,144.49,144.46,15.3672]
[1718533264566,2.5607,144.49,144.47,2.561]
[1718533264744,23.0458,144.5,144.47,2.561]
[1718533265114,2.5607,144.49,144.47,2.561]
[1718533265370,2.5607,144.49,144.46,25.6122]
[1718533265577,7.6823,144.49,144.46,15.3672]
[1718533265749,7.6823,144.49,144.47,2.561]
[1718533266252,2.5607,144.49,144.46,23.0511]
[1718533266462,2.5607,144.49,144.47,2.561]
[1718533267246,12.8037,144.49,144.46,2.5611]
[1718533267446,2.5609,144.48,144.46,2.5611]
[1718533267646,25.6074,144.49,144.46,2.5611]
[1718533268068,2.5609,144.48,144.46,2.5611]
[1718533268290,2.5609,144.48,144.44,5.1231]
[1718533268291,10.2439,144.48,144.44,5.1231]
[1718533268565,15.8215,144.52,144.44,2.5615]
[1718533268566,23.0499,144.47,144.44,2.5615]
[1718533268935,2.5612,144.46,144.44,2.5615]
[1718533269172,25.6111,144.47,144.44,7.6847]
[1718533269342,2.5612,144.46,144.44,7.6847]
[1718533269550,2.5612,144.46,144.44,2.5615]
[1718533270898,25.6111,144.47,144.44,2.5615]
[1718533271463,23.0499,144.47,144.44,2.5615]
[1718533271682,2.5612,144.46,144.44,2.5615]
[1718533271875,25.6111,144.47,144.44,2.5615]
[1718533272365,7.6835,144.47,144.44,7.6847]
[1718533272667,23.0499,144.47,144.44,2.5615]
[1718533272884,2.5612,144.46,144.44,2.5615]
[1718533273999,25.6111,144.47,144.44,2.5615]
[1718533274180,2.5613,144.46,144.44,2.5615]
[1718533275065,7.6839,144.46,144.43,7.685]
[1718533275287,7.6839,144.46,144.43,15.3703]
[1718533275610,2.5613,144.46,144.44,2.5616]
[1718533275782,2.5613,144.46,144.43,25.6173]
[1718533276419,2.5613,144.46,144.44,2.5616]
[1718533276713,2.5613,144.46,144.43,25.6173]
[1718533276917,7.6838,144.46,144.43,25.6173]
[1718533277587,2.5613,144.46,144.43,25.6173]
[1718533277788,2.5613,144.46,144.44,2.5616]
[1718533278214,2.5613,144.46,144.43,25.6173]
[1718533278788,7.6838,144.46,144.43,25.6173]
[1718533279878,2.5613,144.46,144.44,2.5616]
[1718533280897,2.5613,144.46,144.43,25.6173]
[1718533282721,2.5613,144.46,144.44,2.5616]
[1718533282922,2.5613,144.46,144.43,25.6173]
[1718533283328,2.5613,144.46,144.44,2.5616]
[1718533285204,7.6838,144.46,144.43,17.932]
[1718533285408,7.6838,144.46,144.43,7.6849]
[1718533286303,7.6838,144.46,144.43,15.3702]
[1718533287322,2.5613,144.46,144.44,2.5616]
[1718533287525,2.5613,144.46,144.44,2.5615]
[1718533287725,2.5613,144.46,144.43,23.0557]
[1718533288025,2.5613,144.46,144.44,2.5616]
[1718533288219,2.5613,144.46,144.43,25.6173]
[1718533288427,2.5613,144.46,144.44,2.5615]
[1718533288809,2.5613,144.46,144.43,23.0557]
[1718533289141,2.5613,144.46,144.44,2.5616]
[1718533289625,25.6112,144.47,144.44,2.5616]
[1718533289842,25.6112,144.47,144.43,23.0557]
[1718533289843,2.5612,144.46,144.43,25.6173]
[1718533290337,2.5612,144.46,144.44,2.5616]
[1718533290752,2.5611,144.47,144.45,2.5614]
[1718533290913,2.5611,144.47,144.39,15.2981]
[1718533290914,2.5608,144.49,144.41,0.17]
[1718533291114,25.6063,144.5,144.47,2.561]
[1718533291436,25.6063,144.5,144.47,7.6831]
[1718533291938,2.5607,144.49,144.46,23.0509]
[1718533292239,2.5607,144.49,144.47,2.561]
[1718533292841,10.2422,144.5,144.47,5.122]
[1718533293041,7.6818,144.5,144.47,15.3661]
[1718533293742,7.6817,144.5,144.47,25.6103]
[1718533294047,15.3633,144.5,144.47,7.6829]
[1718533294419,25.6057,144.5,144.47,2.5609]
[1718533294927,2.5607,144.49,144.47,2.5609]
[1718533295447,2.5607,144.49,144.47,2.561]
[1718533297150,2.5607,144.49,144.46,25.6114]
[1718533297327,2.5606,144.5,144.43,15.6694]
[1718533297522,2.5606,144.5,144.48,2.5608]
[1718533297722,2.5607,144.49,144.46,23.0501]
[1718533298055,2.5607,144.49,144.47,2.561]
[1718533298249,7.6821,144.49,144.46,25.6112]
[1718533298744,23.0452,144.5,144.47,2.561]
[1718533299046,25.6059,144.5,144.47,7.6831]
[1718533299254,2.5607,144.49,144.47,7.6831]
[1718533299429,25.6058,144.5,144.47,2.561]
[1718533299621,25.6058,144.5,144.47,7.6831]
[1718533299820,2.5607,144.49,144.47,2.561]
[1718533300522,7.6818,144.5,144.47,7.6831]
[1718533300734,15.3634,144.5,144.47,7.6831]
[1718533301135,2.5607,144.49,144.47,2.561]
[1718533301650,25.6056,144.5,144.47,7.6831]
[1718533302263,7.6818,144.5,144.48,2.5608]
[1718533302448,2.5606,144.5,144.48,2.5608]
[1718533303264,0.17,144.55,144.43,15.6694]
[1718533303474,23.0392,144.54,144.51,2.5602]
[1718533303779,7.6797,144.54,144.51,15.3619]
[1718533303972,15.3592,144.54,144.51,7.6808]
[1718533304325,2.56,144.53,144.51,2.5602]
[1718533304531,7.68,144.53,144.5,25.6046]
[1718533304744,2.5602,144.52,144.5,2.5604]
[1718533307327,7.6806,144.52,144.49,25.606]
[1718533307629,15.3612,144.52,144.49,17.9243]
[1718533308264,15.3612,144.52,144.49,7.6817]
[1718533308441,7.6806,144.52,144.49,7.6817]
[1718533308635,15.3612,144.52,144.49,7.6817]
[1718533310979,7.6806,144.52,144.49,7.6817]
[1718533311352,7.6806,144.52,144.49,15.3638]
[1718533311560,7.6806,144.52,144.5,2.5605]
[1718533311752,2.5602,144.52,144.5,2.5605]
[1718533311962,25.6008,144.53,144.5,7.6815]
[1718533312456,2.5601,144.53,144.51,2.5603]
[1718533313683,2.5601,144.53,144.5,25.6047]
[1718533314663,7.6802,144.53,144.5,7.6813]
[1718533315177,15.3602,144.53,144.5,7.6813]
[1718533315678,2.5602,144.52,144.5,2.5603]
[1718533316075,2.5602,144.52,144.5,2.5605]
[1718533316266,2.5602,144.52,144.49,23.0455]
[1718533316571,7.6806,144.52,144.49,25.606]
[1718533317580,7.6796,144.54,144.51,2.5602]
[1718533317883,7.6796,144.54,144.51,7.6808]
[1718533317884,15.359,144.54,144.51,7.6808]
[1718533318356,2.56,144.53,144.51,2.5603]
[1718533319282,2.56,144.53,144.5,23.044]
[1718533319283,2.56,144.53,144.5,25.6044]
[1718533319775,7.68,144.53,144.5,25.6044]
[1718533320192,25.5985,144.54,144.51,2.5603]
[1718533320493,2.56,144.53,144.51,2.5603]
[1718533320655,25.5985,144.54,144.51,7.681]
[1718533322195,23.0386,144.54,144.51,2.5603]
[1718533322556,2.56,144.53,144.51,2.5603]
[1718533325801,20.4767,144.56,144.5,5.1209]
[1718533325966,2.5595,144.56,144.54,2.5598]
[1718533326169,25.5938,144.57,144.54,2.5598]
[1718533326397,2.5595,144.56,144.54,2.5598]
[1718533327904,2.5595,144.56,144.53,23.0396]
[1718533327905,7.6784,144.56,144.53,23.0396]